Cogmind - Beta 9.6 @@@ ROGUE MODE // 2020.09.07 @ 22:21:53 Player: ModulinMyGlobulin Result: Destroyed by D-53 Grenadier with Mini Grenade Launcher Performance ------------- Evolutions (0) 0 Regions Visited (2) 400 Robots Destroyed (7) 35 Value Destroyed (222) 222 Prototype IDs (0) 0 Alien Tech Used (0) 0 Bonus (0) 0 TOTAL SCORE: 657 Bonus ------- None Cogmind --------- Core Integrity 0/250 Matter 328/400 Energy 100/100 System Corruption 0% Temperature Cool (0) Movement Core (300) Ox5 Location -10/Mines Parts ------- > --- POWER (1) -------- (None) > --- PROPULSION (2) --- (None) > --- UTILITY (2) ------ Large Storage Unit Medium Matter Pod > --- WEAPON (2) ------- (None) > --- INVENTORY (10) --- Ion Engine Light Treads Light Treads Compact Wheel EM Pulse Gun Grenade Launcher Peak State ------------ > --- POWER ------------ Light Nuclear Core > --- PROPULSION ------- Aluminum Leg Aluminum Leg > --- UTILITY ---------- Small Storage Unit Medium Matter Pod > --- WEAPON ----------- Particle Gun Grenade Launcher > --- INVENTORY -------- Ion Engine Light Treads Light Treads Compact Wheel EM Pulse Gun Small Laser [Rating: 10] Favorites ----------- Power Ion Engine Engine Ion Engine Power Core Light Nuclear Core Propulsion Aluminum Leg Leg Aluminum Leg Utility Small Storage Unit Storage Small Storage Unit Weapon Grenade Launcher Energy Gun Particle Gun Ballistic Gun Light Assault Rifle Launcher Grenade Launcher Build | -11 -10 -10 ------- Run | Scr Mat Min Slots Evolved . | . . . Power . | . . . Propulsion . | . . . Utility . | . . . Weapon . | . . . Parts Attached 10 | . 3 7 Power 1 | . . 1 Engine . | . . . Core 1 | . . 1 Reactor . | . . . Propulsion 3 | . 2 1 Treads . | . . . Leg 3 | . 2 1 Wheel . | . . . Hover . | . . . Flight . | . . . Utility 2 | . . 2 Device . | . . . Storage 2 | . . 2 Processor . | . . . Hackware . | . . . Protection . | . . . Artifact . | . . . Weapon 4 | . 1 3 Energy Gun 2 | . . 2 Energy Cannon . | . . . Ballistic Gun 1 | . 1 . Ballistic Cannon . | . . . Launcher 1 | . . 1 Special Weapon . | . . . Impact Weapon . | . . . Slashing Weapon . | . . . Piercing Weapon . | . . . Special Melee Weapon . | . . . Unidentified Prototypes . | . . . Parts Lost 6 | . . 6 Power 1 | . . 1 Propulsion 2 | . . 2 Utility . | . . . Weapon 3 | . . 3 Highest Loss Streak 5 | . . 5 Average Slot Usage (%) 87 | . 83 88 Engine 7 | . 14 5 Core 6 | . . 7 Leg 27 | . 28 27 Storage 19 | . 14 21 Energy Gun 9 | . 14 8 Ballistic Gun 6 | . 12 3 Launcher 10 | . . 13 Naked Turns . | . . . Heaviest Build 29 | 11 11 29 Greatest Support 20 | 20 20 20 Greatest Overweight (x) 5 | . . 5 Average Overweight (x) . | . . . Largest Inventory Capacity 10 | . 6 10 Average Capacity 6 | . 6 6 Most Carried 6 | . 6 6 Average Carried 6 | . 6 6 Final Capacity 10 | 6 6 10 Final Carried 6 | 6 6 6 Class Distribution -------------------- 55% | Mutant 44% | Scavenger-Mutant Dominant Class ---------------- Mutant | -10/Materials Scavenger-Mutant | -10/Mines Resources | -11 -10 -10 ----------- Run | Scr Mat Min Matter Collected 352 | 200 . 152 Remotely . | . . . Salvage Created 167 | . 86 81 Parts 11 | . 3 8 Haulers Intercepted . | . . . Recyclers Shooed . | . . . Parts Field Recycled . | . . . Retrieved Matter . | . . . Parts Self-Destructed . | . . . Prevented . | . . . Kills | -11 -10 -10 ------- Run | Scr Mat Min Combat Hostiles Destroyed 7 | . 2 5 Guns 2 | . 2 . AOE 5 | . . 5 Classes Destroyed 2 | . 1 1 Swarmer 3 | . . 3 Grunt 4 | . 2 2 Best Kill Streak 3 | . 2 3 Combat Bots Only 3 | . 2 3 Max Kills in Single Turn 2 | . 1 2 Gunslinging . | . . . Exploded 2 | . . 2 Melee . | . . . Uniques/NPCs Destroyed . | . . . Combat | -11 -10 -10 -------- Run | Scr Mat Min Damage Taken 804 | . 142 662 Core 259 | . 9 250 Absorbed by Shields . | . . . Core Remaining (%) 100 | 100 . . Volleys Fired 14 | . 7 7 Largest 2 | . 2 2 Hottest 105 | . 60 105 Shots Fired 22 | . 14 8 Gun 17 | . 14 3 Cannon . | . . . Launcher 5 | . . 5 Special . | . . . Kinetic 7 | . 7 . Thermal 10 | . 7 3 Explosive 5 | . . 5 Electromagnetic . | . . . Robot Hit Streak 7 | . 7 1 Robot Miss Streak 4 | . 1 4 Penetration Max . | . . . Secondary Targets . | . . . Shots Hit Robots 14 | . 12 2 Core Hits 13 | . 5 8 Critical Hits . | . . . Critical Kills . | . . . Critical Parts Destroyed . | . . . Melee Attacks . | . . . Impact . | . . . Slashing . | . . . Piercing . | . . . Sneak Attacks . | . . . Combat Hostiles . | . . . Follow-up Attacks . | . . . Damage Inflicted 381 | . 115 266 Guns 133 | . 105 28 Cannons . | . . . Explosions 238 | . . 238 Melee . | . . . Ramming 10 | . 10 . Kinetic 39 | . 39 . Thermal 94 | . 66 28 Explosive 238 | . . 238 Electromagnetic . | . . . Impact . | . . . Slashing . | . . . Piercing . | . . . Highest Corruption . | . . . Average Corruption . | . . . Corruption Purged . | . . . Overload Shots . | . . . Overflow Damage . | . . . Projectiles . | . . . Explosions . | . . . Melee . | . . . Knockbacks . | . . . Impact . | . . . Kinetic . | . . . Secondary . | . . . Self-Inflicted Damage 53 | . 5 48 Shots 2 | . . 2 Rammed 1 | . 1 . Targets Rammed 1 | . 1 . Kicked . | . . . Crushed . | . . . Highest Temperature 103 | . 103 79 Average Temperature 50 | . 55 38 Received Heat Transfer 84 | . 69 15 Siege Activations . | . . . Robots Corrupted . | . . . Combat Hostiles . | . . . Parts Fried . | . . . Impact Corruptions . | . . . Robots Melted . | . . . Combat Hostiles . | . . . Parts Melted . | . . . Heat Transferred 212 | . 150 62 Parts Sabotaged . | . . . Parts Stolen . | . . . Parts Stripped . | . . . Power Chain Reactions . | . . . Missiles Intercepted . | . . . Alert | -11 -10 -10 ------- Run | Scr Mat Min Peak Influence 186 | . 80 186 Average Influence 136 | . 32 172 Maximum Alert Level . | . . . Low Security (%) 100 | . 100 100 Level 1 . | . . . Level 2 . | . . . Level 3 . | . . . Level 4 . | . . . Level 5 . | . . . High Security . | . . . Max Security . | . . . Squads Dispatched 1 | . 1 . Investigation . | . . . Extermination . | . . . Reinforcement 1 | . 1 . Assault . | . . . Garrison . | . . . Intercept . | . . . Construction Impeded . | . . . Haulers Reinforced . | . . . Stealth | -11 -10 -10 --------- Run | Scr Mat Min Distress Signals 1 | . 1 . Communications Jammed . | . . . Distress Signals . | . . . Times Spotted 16 | . 9 7 Peak Tracking Total 7 | . 7 3 Tactical Retreats . | . . . Traps | -11 -10 -10 ------- Run | Scr Mat Min Traps Triggered 1 | . 1 . Indirectly . | . . . Trap Hack Attempts . | . . . Triggered . | . . . Disarmed . | . . . Reprogrammed . | . . . Reused . | . . . Traps Extracted . | . . . Installed . | . . . Triggered . | . . . Machines | -11 -10 -10 ---------- Run | Scr Mat Min Machines Disabled 3 | . . 3 Max in Single Turn 3 | . . 3 Machines Sabotaged . | . . . Garrisons Compromised . | . . . Overloaded Fab Kills . | . . . Fab Network Shutdowns . | . . . Hacking | -11 -10 -10 --------- Run | Scr Mat Min Machines Accessed . | . . . Terminals . | . . . Fabricators . | . . . Repair Stations . | . . . Recycling Units . | . . . Scanalyzers . | . . . Garrison Access . | . . . Total Hacks . | . . . Successful . | . . . Failed . | . . . Catastrophic . | . . . Database Lockouts . | . . . Manual . | . . . Terminals . | . . . Fabricators . | . . . Repair Stations . | . . . Recycling Units . | . . . Scanalyzers . | . . . Garrison Access . | . . . Terminal Hacks . | . . . Fabricator Hacks . | . . . Repair Station Hacks . | . . . Recycling Unit Hacks . | . . . Scanalyzer . | . . . Garrison Access Hacks . | . . . Unauthorized Hacks . | . . . Terminals . | . . . Fabricators . | . . . Repair Stations . | . . . Recycling Units . | . . . Scanalyzers . | . . . Garrison Access . | . . . Data Cores Recovered . | . . . Used . | . . . Hacking Detections . | . . . Full Trace Events . | . . . Feedback Events . | . . . Feedback Blocked . | . . . Robot Schematics Acquired . | . . . Robots Built . | . . . Matter . | . . . Time . | . . . Total Robot Build Rating . | . . . Part Schematics Acquired . | . . . Parts Built . | . . . Matter . | . . . Time . | . . . Total Part Build Rating . | . . . Parts Repaired . | . . . Time . | . . . Parts Recycled . | . . . Recycled Matter . | . . . Retrieved Matter . | . . . Retrieved Components . | . . . Parts Scanalyzed . | . . . Part Schematics Acquired . | . . . Parts Damaged . | . . . Bothacking | -11 -10 -10 ------------ Run | Scr Mat Min Used RIF Installer . | . . . Robots Hacked . | . . . Non-combat . | . . . Combat . | . . . Robot Hacks Applied . | . . . Relay Couplers Released . | . . . Robots Rewired . | . . . Allies Hacked . | . . . Hacks Repelled . | . . . Allies | -11 -10 -10 -------- Run | Scr Mat Min Total Allies . | . . . Largest Group . | . . . Highest-Rated Group . | . . . Highest-Rated Ally . | . . . Total Orders . | . . . Ally Attacks . | . . . Total Damage . | . . . Kills . | . . . Allies Corrupted . | . . . Allies Melted . | . . . Intel | -11 -10 -10 ------- Run | Scr Mat Min Robot Analysis Total . | . . . Derelict Logs Recovered 1 | . . 1 Drone Launches . | . . . Drone Recoveries . | . . . Exploration | -11 -10 -10 ------------- Run | Scr Mat Min Turns Passed 421 | . 108 313 Spaces Moved 292 | 1 58 233 Core 1 | . . 1 Treads . | . . . Legs 291 | 1 58 232 Wheels . | . . . Hover . | . . . Flight . | . . . Fastest Speed 120 | 120 120 120 Average Speed 122 | 120 120 123 Slowest Speed 300 | 120 120 300 Overloaded Moves . | . . . Propulsion Burnouts . | . . . Robots Hopped . | . . . Cave-ins Triggered . | . . . Exploration Rate (%) 30 | 2 23 67 Regions Visited 2 Branch Regions 1 Pre-discovered Areas 1 | . . 1 Known Exits Taken . | . . . Unknown Exits Taken 2 | 1 1 . Scrap Searched 3 | . . 3 Spaces Dug . | . . . Terrain Destroyed 29 | . . 29 Melee . | . . . Projectile . | . . . AOE 29 | . . 29 Actions | -11 -10 -10 --------- Run | Scr Mat Min Total 334 | . 84 250 Wait 12 | . 12 . Move 291 | . 58 233 Hop . | . . . Pick Up 1 | . 1 . Fast Attach 4 | . 1 3 Attach . | . . . Detach . | . . . Swap 6 | . 2 4 Drop 6 | . 3 3 Fire 14 | . 7 7 Melee . | . . . Ram . | . . . Kick . | . . . Crush . | . . . Escape Stasis . | . . . Rewire . | . . . Trap . | . . . Miscellaneous . | . . . Route ------- -11/Scrapyard -10/Materials -10/Mines History --------- Turn | Location | Event 1 | -11/Scrapyard | Discovered new exit (range 0) 1 | -11/Scrapyard | Entered Materials 101 | -10/Materials | Discovered new exit (range 7) 109 | -10/Materials | Entered Mines 110 | -10/Mines | Assembled infested the area 404 | -10/Mines | Learned location of Zion (-7) 420 | -10/Mines | Core integrity fell below 50% 422 | -10/Mines | Destroyed by D-53 Grenadier with Mini Grenade Launcher Last Messages --------------- 00379_ Found Lgt. Assault Rifle. 00379_ Found Aluminum Leg. 00379_ Found Lrg. Storage Unit. 00380_ Acquired 26 matter. 00382_ Dropped Sml. Storage Unit. 00386_ Acquired 10 matter. 00400_ U-05 Engineer lays Concrete. 00402_ U-05 Engineer builds a Wall. 00404_ Acquired derelict log, extracted data. World map updated: -7/Zion. 00411_ Sml. Laser destroyed. 00412_ U-05 Engineer destroyed. 00413_ The unstable cave ceiling collapses. 00413_ U-05 Engineer destroyed. 00415_ Aluminum Leg destroyed. 00417_ Lgt. Nuclear Core destroyed. 00419_ The unstable cave ceiling collapses. 00419_ Aluminum Leg destroyed. 00419_ Particle Gun destroyed. 00421_ The unstable cave ceiling collapses. Map ----- +----------------------------------------------------+ | ?????????????????????? ?????????????#####?## | | ????????????????????# ##??????????## ## | | ????????????????????# ??????????# | | ????????????????????# ??????????# | | ????????????????????# ??????????## | | ???????????????????## ???????????###### # | | ?????????????????### ????????????????#### | | ?????????????????# ???????????????????? | | ?????????????????? ##?????????????????? | | ??????????????????? ##????????????????? | | ????????????????????? % ##???????????????? | | ????????????????????? ##??????????????? | | ??????????????????????? ##?????????????? | | ????????????????????????# ###???????????? | | ????????????????????????# #???????????? | | ???????????????????????## ##??????????? | | ??????????????????????## % #??????????? | | ?????????????????????## dd #######????? | | ????????????????????## ! #????? | | ????????????????????# !!* = [ #????? | | ??????????????????#### = ### ##### #????? | | ????????????????### # ## %#???# #????? | | ????????????????# # #???# #????? | | ????????????????# # #???# #??### | | ????????????????## # #???# #### | | ????????????????# @ ###???# | | ????????????????# #?????# | | ????????????????# ###?????####### | | ????????????????# #????????????## | | ????????????????### # # #????????????# | | ??????????????????# ### # ???????????# | | ??????????????????# ??# ?????????## | | ??????????????????# ?? ?????????### | | ??????????????????# ?? ??######### | | ??????????????????# ?? ##### | | ??????????????????# ??#% % ##???# """ """ " | | ??????????????????# ??? %=* #????# """ """ " | | ??????????????????#???? " * ????# """ """ " | | ??????????????????????? * ? ????# | | ??????????????????????? % ???????# """ " | | ??????????????????????? !?????????# """ | | ??????????????????????????????????# """ | | ??????????????????????????????????# | | ??????????????????????????????????# """ "" | | ??????????????????????????????????# """ " | | ??????????????????????????????????# """ """ | | ??????????????????????????????????? | | ??????????????????????????????????# """ """ " | | ??????????????????????????????????# """ """ " | | ??????????????????????????????????? ?"" """ " | +----------------------------------------------------+ Best States ------------- Heat Dissipation 25 Energy Generation 14 Energy Capacity 250 Matter Stores 328 Matter Capacity 400 Sight Range 16 Terrain Scan Density 10 Evasion (%) 40 Item Schematics ----------------- None Robot Schematics ------------------ None Fabricated ------------ Nothing Alien Tech Used ----------------- None Achievements -------------- None Challenges ------------ None Game ------ Seed SignalSuperchargedCutter Manual? 0 Play Time 00:04:55 Cumulative 11.1 hours Start 2020.09.07 @ 22:18:19 End 2020.09.07 @ 22:21:53 Sessions 1 Manual Loads 0 Difficulty Rogue Special Mode None Game No. 16 Rogue 16 Adventurer 0 Explorer 0 Win Type - Total 0 Types 0/0/0/0/0/0/0 Lore% 31 Gallery% 28 Achievement% 34 Wizard Run 0 Options --------- ASCII 0 Keyboard 0 Movement Numpad Keybinds 0 Fullscreen 1 Font 18/SmallcapsGlow Map View 76x50 Tactical HUD 1 Map Filters NONE Filters NONE Steam 1 RUN: cddacad2-84b5-49da-b114-b33510f8a687